[Event "Azerbaijan Men Championship 2024"]
[Site "Baku"]
[Date "2024.04.19"]
[Round "9.1"]
[White "Muradli, Mahammad"]
[Black "Gadimbayli, Abdulla"]
[Result "1/2-1/2"]
[ECO "E06"]
[WhiteElo "2555"]
[BlackElo "2489"]
[Annotator "TA"]
[PlyCount "97"]
[EventDate "2024.04.11"]
[EventType "swiss"]
[EventCountry "AZE"]
[SourceTitle "playchess.com"]
[Source "ChessBase"]
[SourceQuality "1"]
[TimeControl "40/5400+30:1800+30"]

{[%evp 18,97,31,16,10,15,17,0,0,0,0,0,11,0,18,0,0,0,0,0,13,13,16,-12,-2,-10,-5,-32,-41,-35,-24,-20,-23,-29,-29,-33,-34,-37,-36,-41,-40,-33,-25,-49,-47,-67,-66,-57,-60,-57,-58,-78,-56,-75,-68,-95,-75,-102,-104,-96,-100,-85,-10,-34,-35,-36,-33,-33,-30,-97,-97,-91,-27,-18,-18,-85,-85,-85,-85,-85,-85,-85]} 1. Nf3 {[%emt 0:07:03]} Nf6 {[%emt 0:00:39]} 2. c4 {[%emt 0:00:05]} e6 {[%emt 0:01:25]} 3. g3 {[%emt 0:00:09]} d5 {[%emt 0:02:39]} 4. d4 {[%emt 0:00:24]} Be7 {[%emt 0:00:17]} 5. Bg2 {[%emt 0:02:11]} O-O {[%emt 0:00:10]} 6. Nc3 {[%emt 0:02:33]} Nc6 {[%emt 0:06:21] E06: Closed Catalan: Early deviations.} 7. Ne5 {[%emt 0:05:16] The modern move.} Nxe5 {[%emt 0:09:36]} 8. dxe5 {[%emt 0:02:51]} Nd7 {[%emt 0:01:21]} 9. cxd5 {[%emt 0:00:55]} Nxe5 {[%emt 0:00:16]} 10. O-O {[%emt 0:03:39]} exd5 {[%emt 0:04:12]} 11. Nxd5 {[%emt 0:00:13]} Bd6 {[%emt 0:03:28]} 12. h3 $146 {[%emt 0:06:38]} ({Predecessor:} 12. b3 c6 13. Ne3 Bc5 14. Qc2 Bd4 15. Bb2 Bxb2 16. Qxb2 Qf6 17. Qc2 Ng4 18. Nc4 {½-½ Wojtaszek,R (2668)-Aronian,L (2742) FIDE Grand Swiss 2023 (9)}) 12... c6 {[%emt 0:03:48]} 13. Nc3 {[%emt 0:00:38]} Be6 {[%emt 0:09:03]} 14. b3 {[%emt 0:05:35]} Qe7 {[%emt 0:08:34]} 15. Qc2 {[%emt 0:16:28]} Nd7 {[%emt 0:08:45]} 16. Re1 {[%emt 0:06:42]} Rad8 {[%emt 0:02:59]} 17. e4 {[%emt 0:09:09]} Bc5 {[%emt 0:02:58]} 18. Bb2 {[%emt 0:05:03]} Qg5 {[%emt 0:06:06]} 19. Ne2 {[%emt 0:03:52]} Bb6 {[%emt 0:05:52]} 20. Rad1 {[%emt 0:11:46]} Qc5 {[%emt 0:11:01]} 21. Qxc5 {[%emt 0:07:05]} Nxc5 {[%emt 0:00:26]} 22. Bd4 {[%emt 0:00:05]} Rd7 {[%emt 0:04:02]} 23. Bxc5 {[%emt 0:00:53]} Rxd1 {[%emt 0:01:15]} 24. Rxd1 {[%emt 0:00:01]} Bxc5 {[%emt 0:00:06]} 25. Nf4 {[%emt 0:00:19]} g5 {[%emt 0:03:47]} 26. Nxe6 {[%emt 0:00:29]} fxe6 {[%emt 0:00:04]} 27. Rd2 {[%emt 0:00:10]} e5 {[%emt 0:00:10]} 28. Bf1 {[%emt 0:01:53]} Rf6 {[%emt 0:02:17]} 29. Kg2 {[%emt 0:00:52]} Kf8 {[%emt 0:00:34]} 30. Bc4 {[%emt 0:01:20]} Bd4 {[%emt 0:00:43]} 31. Rc2 {[%emt 0:00:40]} b5 {[%emt 0:01:32]} 32. Bd3 {[%emt 0:00:02]} Ke7 {[%emt 0:00:06]} 33. Bf1 {[%emt 0:00:51]} Kd6 {[%emt 0:00:19]} 34. Bd3 {[%emt 0:00:35]} Rf8 {[%emt 0:00:48]} 35. Bf1 {[%emt 0:00:45]} a6 {[%emt 0:01:14]} 36. a4 {[%emt 0:00:47]} Rb8 {[%emt 0:00:37]} 37. Be2 {[%emt 0:00:04]} c5 {[%emt 0:00:54]} 38. axb5 {[%emt 0:01:29]} axb5 {[%emt 0:00:01]} 39. Ra2 {[%emt 0:00:00] [#]} Kc6 {[%emt 0:00:37]} ({Black should play} 39... c4 $1 $17 {[%cal Rc4b3]} 40. bxc4 b4 41. Ra6+ Kc7) 40. Ra6+ {[%emt 0:00:00]} Rb6 {[%emt 0:00:00]} 41. Ra7 {[%emt 0:09:19]} c4 {[%emt 0:04:43]} 42. bxc4 {[%emt 0:06:26]} b4 {[%emt 0:00:04]} 43. Ra5 {[%emt 0:00:49]} (43. h4 $11 {remains equal.}) 43... b3 $17 {[%emt 0:06:03]} 44. Rb5 {[%emt 0:00:23]} Rxb5 {[%emt 0:02:34]} (44... h5 $17) 45. cxb5+ $11 {[%emt 0:00:02]} Kc5 {[%emt 0:00:06]} 46. b6 {[%emt 0:02:20]} (46. Kf3 $11 {keeps the balance.}) 46... Kxb6 $17 {[%emt 0:00:26]} 47. Bc4 {[%emt 0:00:05]} b2 {[%emt 0:00:12]} 48. Bd3 {[%emt 0:00:18]} Kc5 {[%emt 0:02:02]} 49. Kf1 {[%emt 0:00:14]} 1/2-1/2

[Event "Azerbaijan Men Championship 2024"]
[Site "Baku"]
[Date "2024.04.19"]
[Round "9.2"]
[White "Manafov, Vugar"]
[Black "Suleymanli, Aydin"]
[Result "0-1"]
[ECO "D50"]
[WhiteElo "2424"]
[BlackElo "2607"]
[Annotator "TA"]
[PlyCount "86"]
[EventDate "2024.04.11"]
[EventType "swiss"]
[EventCountry "AZE"]
[SourceTitle "playchess.com"]
[Source "ChessBase"]
[SourceQuality "1"]
[TimeControl "40/5400+30:1800+30"]

{[%evp 14,86,22,16,19,27,16,12,30,39,11,8,21,25,30,16,17,0,0,0,0,1,1,4,0,7,5,4,6,4,4,3,13,2,6,0,0,0,23,11,12,6,22,27,40,18,25,8,27,6,8,0,0,-77,-77,-80,-72,-120,-105,-391,-306,-715,-694,-1455,-1354,-29992,-308,-29987,-6744,-29988,-29989,-29993,-29986,-29988,-29989]} 1. d4 {[%emt 0:00:06]} Nf6 {[%emt 0:00:05]} 2. c4 {[%emt 0:00:14]} e6 {[%emt 0:00:05]} 3. Nf3 {[%emt 0:00:15]} d5 {[%emt 0:00:07]} 4. Nc3 {[%emt 0:00:14]} c5 {[%emt 0:00:10]} 5. cxd5 {[%emt 0:00:23]} cxd4 {[%emt 0:00:11]} 6. Qxd4 {[%emt 0:00:21]} exd5 {[%emt 0:00:07]} 7. Bg5 {[%emt 0:00:21]} Be7 {[%emt 0:00:04]} 8. e3 {[%emt 0:00:15]} O-O {[%emt 0:00:22]} 9. Rd1 {[%emt 0:00:19][%cal Og5f6]} Nc6 {[%emt 0:04:52]} 10. Qa4 {[%emt 0:00:21]} Bb4 {[%emt 0:00:23] The position is equal.} 11. Bd3 {[%emt 0:09:34]} h6 {[%emt 0:02:22]} 12. Bh4 {[%emt 0:00:30]} g5 {[%emt 0:00:21]} 13. Bg3 {[%emt 0:00:40]} Qa5 {[%emt 0:00:19]} 14. Qxa5 {[%emt 0:18:18]} Bxa5 {[%emt 0:00:06]} 15. Ne5 {[%emt 0:01:36]} Re8 {[%emt 0:16:39]} 16. Nxc6 {[%emt 0:00:38]} bxc6 {[%emt 0:00:15]} 17. O-O {[%emt 0:01:13]} Bxc3 {[%emt 0:00:34]} 18. bxc3 {[%emt 0:00:05]} Ne4 {[%emt 0:00:22]} 19. Bxe4 {[%emt 0:05:24]} Rxe4 {[%emt 0:00:15]} 20. Rd4 {[%emt 0:00:29]} Bf5 {[%emt 0:06:13]} 21. Rfd1 {[%emt 0:06:26]} Rae8 {[%emt 0:07:05]} 22. R1d2 {[%emt 0:02:46]} R4e7 {[%emt 0:15:41]} 23. Rb2 {[%emt 0:02:13]} Rd7 {[%emt 0:00:35]} 24. Ra4 {[%emt 0:05:23]} Bd3 {[%emt 0:03:03]} 25. Ra5 {[%emt 0:01:54]} Kh7 {[%emt 0:03:53]} 26. Rb4 {[%emt 0:07:49]} Bc4 {[%emt 0:09:25]} 27. a3 {[%emt 0:06:16]} f5 {[%emt 0:07:34][%cal Of5f4]} 28. h3 {[%emt 0:00:55]} Re6 {[%emt 0:00:46]} 29. Bb8 {[%emt 0:03:17]} (29. Be5 $5) 29... a6 {[%emt 0:00:16]} 30. Rc5 {[%emt 0:00:29]} (30. Be5 $5) 30... Rf7 {[%emt 0:01:18]} 31. Rb6 {[%emt 0:02:20]} Rff6 {[%emt 0:00:20]} 32. Rb7+ {[%emt 0:02:41]} Kg6 {[%emt 0:00:34]} 33. f4 {[%emt 0:01:17]} (33. a4 $11) 33... Rxe3 $17 {[%emt 0:07:08]} 34. Be5 {[%emt 0:00:18]} Re6 {[%emt 0:00:14]} 35. Kh2 {[%emt 0:02:19]} (35. Rb6 $142) 35... Kh5 {[%emt 0:02:39] [#] Strongly threatening ...Re2.} 36. Rf7 $2 {[%emt 0:01:33][%mdl 8192] Loses the game.} (36. Rb6 $17 {keeps fighting.}) 36... Re2 {[%emt 0:01:12] aiming for ...Bd3.} 37. Kg1 $2 {[%emt 0:03:08]} (37. Rxf5 Bd3 38. Rf6 Rxf6 39. Bxf6) 37... Bd3 $19 {[%emt 0:00:58]} 38. Rf6 {[%emt 0:02:11]} Rxf6 {[%emt 0:02:18]} 39. Bxf6 {[%emt 0:00:04]} Be4 $2 {[%emt 0:00:54]} (39... Kh4 {mates} 40. Rxc6 Kg3 41. Re6 Rxe6 42. Be5 g4 (42... gxf4 {leads to mate.} 43. Bxf4+ Kxf4 44. Kh2 Re2 45. a4 Be4 46. Kg1 Rxg2+ 47. Kh1 Kg3 48. a5 Rh2+ 49. Kg1 Rh1#) 43. Kh1 Rb6 (43... gxh3 44. gxh3 Rb6 45. Bd4 Be4+ 46. Kg1 Rb1#) 44. Bd4 Rb1+ 45. Bg1 gxh3 46. gxh3 Be4#) 40. g4+ $2 {[%emt 0:00:00] [#]} (40. Kf1 $19 Rxg2 41. Rxc6) 40... fxg4 {[%emt 0:00:00]} 41. hxg4+ {[%emt 0:00:21]} Kxg4 {[%emt 0:00:55] Black mates.} 42. fxg5 {[%emt 0:00:06]} hxg5 {[%emt 0:01:50]} 43. c4 {[%emt 0:01:12]} Kf3 {[%emt 0:00:20] Weighted Error Value: White=0.83/Black=0.20 (precise) .  Loses game:     	White=1     	---        Mistake:       	White=3     	---        Inaccurate:     	White=2     	---        OK:         	White=10    	Black=13     Best:        	---       	Black=1} 0-1

[Event "Azerbaijan Men Championship 2024"]
[Site "Baku"]
[Date "2024.04.19"]
[Round "9.3"]
[White "Rasulov, Vugar"]
[Black "Samadov, Read"]
[Result "1-0"]
[ECO "B30"]
[WhiteElo "2551"]
[BlackElo "2502"]
[Annotator "TA"]
[PlyCount "132"]
[EventDate "2024.04.11"]
[EventType "swiss"]
[EventCountry "AZE"]
[SourceTitle "playchess.com"]
[Source "ChessBase"]
[SourceQuality "1"]
[TimeControl "40/5400+30:1800+30"]

{[%evp 50,132,41,18,20,0,0,0,34,24,162,158,194,181,189,174,305,305,271,268,287,269,549,465,516,515,458,223,466,425,467,246,246,246,238,231,245,245,245,245,428,428,428,428,420,271,385,258,614,295,729,392,7710,7306,29957,29954,29960,29959,29955,29962,29963,29963,29968,29970,29969,29969,29972,29971,29972,29973,29976,29966,29977,29978,29978,29978,29978,29979,29979,29980,29980,29980,29983,29984,29984]} 1. e4 {[%emt 0:00:09]} c5 {[%emt 0:00:07]} 2. Nf3 {[%emt 0:00:37]} d6 {[%emt 0:00:07]} 3. Bc4 {[%emt 0:00:37]} Nf6 {[%emt 0:01:19]} 4. d3 {[%emt 0:00:08]} Nc6 {[%emt 0:00:55]} 5. O-O {[%emt 0:00:31]} g6 {[%emt 0:01:26]} 6. h3 {[%emt 0:00:09]} Bg7 {[%emt 0:00:53]} 7. Nc3 {[%emt 0:02:25]} O-O {[%emt 0:02:27]} 8. a4 {[%emt 0:00:25] B30: Sicilian: 2...Nc6 3 Bb5, lines without ...g6.} b6 {[%emt 0:06:44]} 9. Bf4 $146 {[%emt 0:02:09]} ({Predecessor:} 9. Nd5 Bb7 10. c3 Nxd5 11. Bxd5 e6 12. Ba2 d5 13. Bg5 Qd7 14. Qc1 d4 15. Rd1 Rae8 {0-1 Radjabov,T (2767)-Dubov,D (2676) Hamburg FIDE GP 2019 (1.7)}) 9... Bb7 {[%emt 0:03:39]} 10. Qd2 {[%emt 0:00:07]} a6 {[%emt 0:10:19]} 11. Bh6 {[%emt 0:02:04]} e6 {[%emt 0:03:12]} 12. Ba2 {[%emt 0:02:19]} Rc8 {[%emt 0:05:56]} 13. Rfe1 {[%emt 0:01:07]} Nd4 {[%emt 0:07:16]} 14. Nxd4 {[%emt 0:03:31]} Bxh6 {[%emt 0:04:57]} 15. Qxh6 {[%emt 0:00:02]} cxd4 {[%emt 0:00:06]} 16. Ne2 {[%emt 0:00:05]} Rxc2 {[%emt 0:10:13]} 17. Nxd4 {[%emt 0:00:26]} Rxb2 {[%emt 0:02:33]} 18. Bb3 {[%emt 0:07:59]} d5 {[%emt 0:07:55]} 19. Qc1 {[%emt 0:04:16]} Rxb3 {[%emt 0:00:14]} 20. Nxb3 {[%emt 0:00:07]} dxe4 {[%emt 0:00:06]} 21. dxe4 {[%emt 0:00:17]} Bxe4 {[%emt 0:01:58]} 22. Qe3 {[%emt 0:02:18]} Bd5 {[%emt 0:01:27]} 23. Nd2 {[%emt 0:02:44]} b5 {[%emt 0:04:05]} 24. a5 {[%emt 0:01:17]} Qd6 {[%emt 0:03:28]} 25. Nf1 {[%emt 0:08:27]} Rd8 {[%emt 0:03:21]} 26. Qd4 {[%emt 0:02:21]} (26. Rad1 {simplifies} Ne4 27. Qxe4 Bxe4 28. Rxd6 Rxd6 29. Rxe4 Rd1 30. g3) 26... Qe7 {[%emt 0:02:55]} 27. Qh4 {[%emt 0:07:37]} Kg7 {[%emt 0:01:30]} 28. Ne3 {[%emt 0:01:09]} Qc7 {[%emt 0:00:31]} 29. Qb4 {[%emt 0:02:17]} Kg8 {[%emt 0:04:35]} (29... g5 $11) 30. Rac1 $18 {[%emt 0:02:47]} Qd7 {[%emt 0:02:45]} 31. Qd4 {[%emt 0:02:40]} Qe7 {[%emt 0:00:19] [#]} 32. Qe5 $1 {[%emt 0:01:07]} Bc4 {[%emt 0:02:10]} (32... Kg7 $142 33. Rc7 Qd6) 33. Nxc4 $18 {[%emt 0:03:52]} bxc4 {[%emt 0:00:01]} 34. Rxc4 {[%emt 0:00:15]} Nd5 {[%emt 0:00:57]} 35. Rb1 {[%emt 0:01:57]} h5 $2 {[%emt 0:01:50]} (35... Qd6 36. Qxd6 Rxd6 37. Rc8+ Kg7) 36. Rb8 $18 {[%emt 0:02:00]} Rxb8 {[%emt 0:00:24]} 37. Qxb8+ {[%emt 0:00:07]} Kh7 {[%emt 0:00:04]} 38. Qe5 {[%emt 0:01:44]} (38. Rc6 $142) 38... Qd8 $2 {[%emt 0:00:42]} (38... Qd7 {was necessary.} 39. Rc2 h4) 39. Rc1 {[%emt 0:02:14]} Kh6 {[%emt 0:01:54]} 40. Rb1 {[%emt 0:00:00]} (40. g3 $142) 40... Qxa5 $18 {[%emt 0:00:00]} 41. Rb8 {[%emt 0:08:17]} (41. Rb7 Qc3 42. Qxc3 Nxc3 43. Rxf7 Nb5) 41... f6 {[%emt 0:04:47]} 42. Qxe6 {[%emt 0:01:02]} Qa1+ {[%emt 0:01:22]} 43. Kh2 {[%emt 0:00:02]} Qd4 {[%emt 0:00:34]} 44. Qd6 {[%emt 0:01:20]} (44. Qxa6 Qf4+ (44... Qxf2 45. Qd6 $14) 45. g3 Qxb8 $19) 44... h4 $2 {[%emt 0:02:48]} (44... Qf4+ {is a better defense.} 45. Qxf4+ Nxf4) 45. Rd8 $18 {[%emt 0:03:18]} (45. Qxa6 $2 {too greedy.} Qf4+ (45... Qxf2 46. Rb3 $11) 46. Kh1 Qxb8 $19) 45... Qf4+ {[%emt 0:00:28]} 46. Qxf4+ {[%emt 0:00:06]} Nxf4 {[%emt 0:00:01]} 47. Rd6 {[%emt 0:00:13]} Kg7 {[%emt 0:06:28]} (47... f5 $142 48. Kg1 (48. Rxa6 Nd3 $18) 48... Kg7 49. Rxa6 g5) 48. Rxa6 $18 {[%emt 0:00:17]} g5 $2 {[%emt 0:02:10]} (48... Nd3 49. Ra7+ Kg8) 49. g3 $18 {[%emt 0:01:28]} hxg3+ $2 {[%emt 0:02:18]} (49... Nd3 50. Kg2 hxg3) 50. Kxg3 $18 {[%emt 0:02:14]} Kg6 $2 {[%emt 0:05:36]} (50... f5 51. h4 Nh5+ 52. Kg2 g4) 51. h4 $18 {[%emt 0:01:55]} Nh5+ {[%emt 0:01:17]} 52. Kg4 {[%emt 0:00:07]} gxh4 {[%emt 0:00:10]} 53. Kxh4 {[%emt 0:01:33]} Ng7 {[%emt 0:00:18]} 54. Kg4 {[%emt 0:00:28]} Nf5 {[%emt 0:00:22]} 55. Kf4 {[%emt 0:00:15]} Nh6 {[%emt 0:00:24]} 56. Ra1 {[%emt 0:00:26]} Kf7 {[%emt 0:01:18]} 57. Rb1 {[%emt 0:01:00]} Kg6 {[%emt 0:00:37]} 58. f3 {[%emt 0:00:52]} Kg7 {[%emt 0:01:49]} 59. Ke4 {[%emt 0:00:26]} Kg6 {[%emt 0:01:09]} 60. Rh1 {[%emt 0:00:42]} Kg7 {[%emt 0:01:54]} 61. f4 {[%emt 0:00:13]} Kg6 {[%emt 0:00:32]} 62. Rg1+ {[%emt 0:00:06]} Kf7 {[%emt 0:01:10]} 63. f5 {[%emt 0:00:07]} Ke7 {[%emt 0:00:41]} 64. Rg7+ {[%emt 0:00:19]} Kf8 {[%emt 0:00:22]} 65. Rg6 {[%emt 0:00:08]} Ng8 {[%emt 0:00:03]} 66. Rxg8+ {[%emt 0:00:22]} Kxg8 {[%emt 0:00:09]} 1-0

[Event "Azerbaijan Men Championship 2024"]
[Site "Baku"]
[Date "2024.04.19"]
[Round "9.4"]
[White "Babazada, Khazar"]
[Black "Hasanzade, Toghrul"]
[Result "1/2-1/2"]
[ECO "B45"]
[WhiteElo "2474"]
[BlackElo "2350"]
[Annotator "TA"]
[PlyCount "145"]
[EventDate "2024.04.11"]
[EventType "swiss"]
[EventCountry "AZE"]
[SourceTitle "playchess.com"]
[Source "ChessBase"]
[SourceQuality "1"]
[TimeControl "40/5400+30:1800+30"]

{[%evp 55,145,95,91,97,122,122,120,96,160,143,228,221,232,229,227,195,217,172,186,122,122,0,167,0,200,179,279,262,271,248,294,150,149,156,148,148,161,106,140,139,149,140,148,138,148,137,145,138,137,21,21,20,28,20,34,17,52,0,0,0,0,0,0,0,0,0,0,0,0,0,0,0,0,0,0,0,0,0,0,0,0,25,44,0,0,0,0,0,0,0,0,0]} 1. e4 {[%emt 0:00:08]} c5 {[%emt 0:02:15]} 2. Nf3 {[%emt 0:00:04]} e6 {[%emt 0:00:21]} 3. d4 {[%emt 0:00:05]} cxd4 {[%emt 0:00:05]} 4. Nxd4 {[%emt 0:00:03]} Nf6 {[%emt 0:00:24]} 5. Nc3 {[%emt 0:00:05]} Nc6 {[%emt 0:00:05]} 6. Ndb5 {[%emt 0:00:11]} Bc5 {[%emt 0:00:15]} 7. Bf4 {[%emt 0:04:14]} O-O {[%emt 0:00:06] B45: Sicilian Four Knights.} 8. Bc7 {[%emt 0:00:38]} Qe7 {[%emt 0:00:06]} 9. Bd6 {[%emt 0:00:08]} Bxd6 {[%emt 0:00:06]} 10. Qxd6 {[%emt 0:00:06]} Qd8 {[%emt 0:00:04]} 11. O-O-O {[%emt 0:01:23]} a6 {[%emt 0:00:16]} 12. Nd4 {[%emt 0:01:19]} Ne7 {[%emt 0:00:07]} 13. Qg3 {[%emt 0:01:42]} b5 {[%emt 0:03:21]} 14. e5 {[%emt 0:01:47]} Ne8 {[%emt 0:02:13]} 15. Ne4 {[%emt 0:00:40]} Bb7 {[%emt 0:07:40]} 16. Nf6+ {[%emt 0:12:19]} Nxf6 {[%emt 0:04:54]} 17. exf6 {[%emt 0:02:31]} Ng6 {[%emt 0:00:31]} 18. fxg7 {[%emt 0:00:05]} Re8 {[%emt 0:00:35]} 19. h4 {[%emt 0:00:38]} Qf6 {[%emt 0:11:35]} 20. h5 {[%emt 0:00:36]} Nf4 $146 {[%emt 0:05:23]} ({Predecessor:} 20... Qf4+ 21. Qxf4 Nxf4 22. h6 Rac8 23. Rh4 e5 24. Nf5 Be4 25. Nd6 Rxc2+ 26. Kb1 Rd2+ 27. Kc1 Rc2+ 28. Kb1 Rd2+ 29. Kc1 Rc2+ {½-½ Guliyev,N (2529)-Maurizzi,M (2433) C'Chartres Blitz Showmatch 3 2020 (8)}) 21. Ne2 {[%emt 0:05:06]} Bxg2 {[%emt 0:13:51]} 22. Rh4 {[%emt 0:00:07]} Nxe2+ {[%emt 0:02:32]} 23. Bxe2 {[%emt 0:00:12]} Bd5 {[%emt 0:03:12]} 24. Kb1 {[%emt 0:00:18]} h6 {[%emt 0:02:25]} 25. Rf4 {[%emt 0:03:13]} Qe5 {[%emt 0:02:29]} 26. Bf3 {[%emt 0:01:50]} Bxf3 {[%emt 0:01:42]} 27. Qxf3 {[%emt 0:00:18]} f5 {[%emt 0:00:44]} 28. Rxd7 {[%emt 0:01:43]} Rad8 {[%emt 0:00:52] [#]} 29. Rfd4 $1 {[%emt 0:03:04]} Qxd4 {[%emt 0:03:38]} 30. Rxd4 {[%emt 0:00:12]} Rxd4 {[%emt 0:00:04]} 31. c3 {[%emt 0:00:24]} Rd5 {[%emt 0:02:06]} (31... Rd6 $142 32. a4 Rb6) 32. Qg3 {[%emt 0:01:01]} Rd7 {[%emt 0:06:50]} (32... Re7 $16) 33. Qg6 $18 {[%emt 0:00:12]} Rf7 {[%emt 0:00:08]} 34. Qxh6 {[%emt 0:00:55]} Rxg7 {[%emt 0:00:04]} 35. Qf6 {[%emt 0:00:07]} Ree7 {[%emt 0:06:59]} 36. Kc2 {[%emt 0:00:30]} Rgf7 {[%emt 0:00:22]} 37. Qg6+ {[%emt 0:00:05]} ({White should try} 37. Qg5+ $18 Rg7 38. Qf6) 37... Rg7 $16 {[%emt 0:00:10]} 38. Qf6 {[%emt 0:00:04]} Rgf7 $1 {[%emt 0:00:03]} 39. Qg6+ $2 {[%emt 0:00:02]} ({Better is} 39. Qg5+ $18 Rg7 40. Qh4) 39... Kf8 $2 {[%emt 0:00:57]} (39... Rg7 $11 {and Black has nothing to worry.} 40. Qf6) 40. h6 {[%emt 0:00:00]} a5 {[%emt 0:00:00]} (40... e5 {was necessary.} 41. a4 (41. Qxa6 Kg8 $11) 41... f4 42. Qxa6 e4) 41. f4 $18 {[%emt 0:00:41]} a4 {[%emt 0:07:16]} 42. a3 {[%emt 0:00:34]} Rh7 {[%emt 0:00:27]} 43. Kd3 {[%emt 0:00:27]} (43. b4 $18 {[%cal Oc3c4] aiming for c4!} axb3+ 44. Kxb3) 43... Rd7+ $16 {[%emt 0:00:19]} 44. Ke3 {[%emt 0:00:09]} Rhf7 {[%emt 0:00:49]} 45. Ke2 {[%emt 0:01:34]} (45. Qxe6 $2 Rde7 $19) 45... Rfe7 {[%emt 0:02:27]} 46. Qg5 {[%emt 0:03:37]} (46. Kf2 $18) 46... Rf7 $16 {[%emt 0:01:28]} 47. Ke3 {[%emt 0:00:23]} Rh7 {[%emt 0:02:31]} 48. Qf6+ {[%emt 0:01:00]} Ke8 {[%emt 0:01:14]} 49. Kf2 {[%emt 0:00:06]} (49. Qxe6+ $2 {too greedy.} Rde7 $19) 49... Rde7 {[%emt 0:00:46]} 50. Kf3 {[%emt 0:00:33]} Kd7 {[%emt 0:00:37]} 51. Ke3 {[%emt 0:00:26]} Kc6 {[%emt 0:00:41]} 52. Qf8 {[%emt 0:01:27]} (52. c4 $16) 52... Rd7 $11 {[%emt 0:00:38]} 53. Qc8+ {[%emt 0:01:10]} Kb6 $1 {[%emt 0:00:53]} 54. Qb8+ {[%emt 0:00:18]} Kc6 $1 {[%emt 0:00:27]} 55. Qa8+ {[%emt 0:00:36]} Kb6 {[%emt 0:00:07] [#]} 56. c4 {[%emt 0:01:18]} (56. Qe8 $1 $14 Rd6 57. Qb8+ Kc5 58. Qc8+ (58. Qf8 Kc6 $16) 58... Kb6 59. Qb8+ Kc6 60. Qf8) 56... bxc4 $11 {[%emt 0:18:26]} 57. Qxa4 {[%emt 0:00:23]} Rd3+ {[%emt 0:00:46]} 58. Ke2 {[%emt 0:00:05]} Rxh6 {[%emt 0:00:22]} ({But not} 58... Rb3 $2 59. Qxc4 Rxb2+ 60. Kf3 $16) 59. Qb4+ {[%emt 0:00:07]} Ka7 {[%emt 0:00:11]} 60. Qc5+ {[%emt 0:02:14]} Kb7 {[%emt 0:00:07]} 61. Qb5+ {[%emt 0:01:20]} Ka7 {[%emt 0:00:12]} 62. Qxc4 {[%emt 0:00:21]} Rd5 {[%emt 0:00:30]} 63. Qc7+ {[%emt 0:03:20]} Ka8 {[%emt 0:00:07]} 64. b4 {[%emt 0:02:10]} Rh2+ {[%emt 0:01:48]} 65. Ke1 {[%emt 0:00:22]} Rh1+ {[%emt 0:04:21]} 66. Kf2 {[%emt 0:00:21]} Rhd1 {[%emt 0:00:21]} 67. Qc6+ {[%emt 0:02:26]} Kb8 {[%emt 0:00:05]} 68. Qb6+ {[%emt 0:00:41]} Ka8 {[%emt 0:00:01]} 69. b5 {[%emt 0:01:38]} Rd6 {[%emt 0:03:30]} 70. Qc5 {[%emt 0:00:42]} Kb7 {[%emt 0:00:46]} 71. a4 {[%emt 0:01:21]} R1d2+ {[%emt 0:03:18]} 72. Kg3 {[%emt 0:04:01]} R2d5 {[%emt 0:00:05]} 73. Qb4 {[%emt 0:01:40]} 1/2-1/2